fUSD/lending_fUSD_20250515
["ID","MTS","AMOUNT","RATE_DAILY","PERIOD"]
[361194561,1747332644060,-5558.54498623,0.00012885,2]
[361194562,1747332644069,-5558.54498623,0.00012885,2]
[361194563,1747332644078,-5558.54498623,0.00012885,2]
[361194564,1747332644087,-5558.54498623,0.00012885,2]
[361194565,1747332644097,-5558.54498623,0.00012885,2]
[361194566,1747332644106,-5083.81456337,0.00012885,2]
[361194571,1747332646310,-178.8165668,0.00012786,2]
[361194572,1747332646320,-474.73042286,0.00012885,2]
[361194573,1747332646330,-5558.54498623,0.00012885,2]
[361194574,1747332646339,-5558.54498623,0.00012885,2]
[361194575,1747332646349,-5558.54498623,0.00012885,2]
[361194576,1747332646358,-5558.54498623,0.00012885,2]
[361194577,1747332646368,-14058.54498613,0.00012885,2]
[361194578,1747332646377,-171.95308774,0.00012885,2]
[361194579,1747332646387,-60696.28455548,0.00012886,2]
[361194580,1747332646398,-10380.0,0.00012886,2]
[361194592,1747332672827,150.0,0.00012459,7]
[361194593,1747332700746,313.04,0.00021945,30]
[361194594,1747332921210,1800.0,0.00027,120]
[361194595,1747333369966,450.0,0.0001,2]
[361194596,1747333399731,167.64238623,0.00010884,2]
[361194597,1747333520138,2220.75691044,9e-05,2]
[361194598,1747333520162,2838.39929667,9e-05,2]
[361194599,1747333520185,985.38099259,9e-05,2]
[361194600,1747333536649,1316.42643881,9e-05,2]
[361194603,1747333554618,536.59186527,6.94e-05,2]
[361194604,1747333554640,717.7955528,6.94e-05,2]
[361194605,1747333561996,2120.60374387,8e-05,2]
[361194606,1747333562022,2838.39929667,8e-05,2]
[361194607,1747333562044,2838.39929667,8e-05,2]
[361194608,1747333562066,2704.78843125,8e-05,2]
[361194609,1747333566285,133.61086542,8e-05,2]
[361194610,1747333566306,2708.01995267,8e-05,2]
[361194614,1747333664785,150.0,0.0001108,7]
[361194615,1747333673454,130.379344,0.0001,2]
[361194616,1747333673477,2838.39929667,0.0001,2]
[361194617,1747333673499,2838.39929667,0.0001,2]
[361194618,1747333674687,-221.73714933,0.0001,2]
[361194619,1747333676733,-253.45589505,0.0001,2]
[361194620,1747333678877,-153.94,0.0001,2]
[361194621,1747333680723,1551.51,9.147e-05,2]
[361194622,1747333719123,150.0,0.00013,5]
[361194628,1747333748092,-203.252,0.0001,2]
[361194651,1747333832296,-1200.0,9.999e-05,2]
[361194654,1747333832306,-287.0545495,9.999e-05,2]
[361194655,1747333832317,-12.9454505,9.999e-05,2]
[361194656,1747333832326,-16290.15969313,0.0001,2]
[361194657,1747333832335,-1871.42270521,0.0001,2]
[361194658,1747333832345,-1367.99300715,0.00010136,2]
[361194659,1747333832354,-737.013531,0.00010996,2]
[361194660,1747333832363,-159.812448,0.00010996,2]
[361194661,1747333832372,-737.013531,0.00010998,2]
[361194662,1747333832381,-737.013531,0.00010998,2]
[361194663,1747333832390,-737.013531,0.00010998,2]
[361194664,1747333832400,-159.812448,0.00010998,2]
[361194665,1747333832409,-1680.0,0.00010999,2]
[361194666,1747333832418,-150.0,0.00011006,2]
[361194667,1747333832427,-1944.06,0.00011007,2]
[361194668,1747333832436,-1626.84,0.00011039,2]
[361194669,1747333832446,-2727.23,0.00011066,2]
[361194670,1747333832455,-247.73,0.00011141,2]
[361194671,1747333832464,-1852.42,0.00011149,2]
[361194672,1747333832474,-424.59,0.00011149,2]
[361194673,1747333832482,-1000.0,0.00011159,2]
[361194674,1747333832492,-5098.75902308,0.000112,2]
[361194675,1747333832501,-737.013531,0.0001127,2]
[361194676,1747333832511,-737.013531,0.00011272,2]
[361194677,1747333832521,-162.94,0.00011309,2]
[361194678,1747333832530,-200.71,0.00011309,2]
[361194679,1747333832540,-254.01,0.00011312,2]
[361194680,1747333832549,-1551.51,0.00011411,2]
[361194681,1747333832559,-737.013531,0.00011544,2]
[361194682,1747333832569,-159.812448,0.00011546,2]
[361194683,1747333832578,-737.013531,0.00011546,2]
[361194684,1747333832587,-1234.02856575,0.000117,2]
[361194685,1747333832596,-737.013531,0.00011818,2]
[361194686,1747333832605,-737.013531,0.0001182,2]
[361194687,1747333832614,-152.53,0.00011863,2]
[361194688,1747333832624,-152.53,0.00011867,2]
[361194689,1747333832633,-152.53,0.00011871,2]
[361194690,1747333832642,-152.53,0.00011875,2]
[361194691,1747333832651,-152.53,0.00011878,2]
[361194692,1747333832661,-102.69358899,0.00011879,2]
[361194693,1747333832672,-97.30641101,0.00011879,2]
[361194694,1747333832682,-955.3,0.00011879,2]
[361194695,1747333832690,-152.53,0.00011882,2]
[361194696,1747333832699,-152.53,0.00011886,2]
[361194697,1747333832708,-152.53,0.0001189,2]
[361194698,1747333832717,-152.53,0.00011894,2]
[361194699,1747333832725,-152.53,0.00011898,2]
[361194700,1747333832734,-29.84725158,0.00011902,2]
[361194701,1747333832745,-122.68274842,0.00011902,2]
[361194703,1747333832755,-152.53,0.00011906,2]
[361194705,1747333832764,-152.53,0.0001191,2]
[361194707,1747333832773,-152.53,0.00011914,2]
[361194709,1747333832781,-152.53,0.00011918,2]
[361194711,1747333832790,-152.53,0.00011922,2]
[361194713,1747333832799,-163.71,0.00011926,2]
[361194716,1747333832808,-1331.44,0.00011926,2]
[361194718,1747333832817,-250.0,0.00011926,2]
[361194721,1747333832826,-1850.32,0.00011932,2]
[361194724,1747333832835,-1707.88797557,0.00011969,2]
[361194728,1747333832847,-302.0,0.00011969,2]
[361194730,1747333832858,-3088.87104739,0.00011969,2]
[361194732,1747333832867,-250.0,0.00011995,2]
[361194734,1747333832876,-500.0,0.00012,2]
[361194736,1747333832885,-255.0,0.00012051,2]
[361194738,1747333832894,-280.87424643,0.00012077,2]
[361194740,1747333832903,-1327.99470618,0.00012087,2]
[361194742,1747333832914,-286.26648193,0.00012087,2]
[361194744,1747333832925,-28385.72881189,0.00012087,2]
[361194746,1747333832935,-2065.88,0.00012087,2]
[361194748,1747333832944,-18045.24,0.00012087,2]
[361194751,1747333832954,-29999.99,0.00012087,2]
[361194753,1747333832963,-159.812448,0.00012092,2]
[361194755,1747333832972,-737.013531,0.00012092,2]
[361194756,1747333832989,-737.013531,0.00012094,2]
[361194758,1747333832999,-2351.0,0.00012099,2]
[361194760,1747333833008,-157.17,0.00012246,2]
[361194762,1747333833017,-737.013531,0.00012368,2]
[361194764,1747333833026,-250.0,0.00012471,2]
[361194766,1747333833036,-1000.0,0.00012554,2]
[361194768,1747333833045,-151.0,0.00012582,2]
[361194771,1747333833057,-200.0,0.00012582,2]
[361194772,1747333833066,-207.4,0.00012582,2]
[361194774,1747333833075,-668.65185757,0.00012582,2]
[361194776,1747333833084,-737.013531,0.00012642,2]
[361194778,1747333833094,-466.7858,0.00012691,2]
[361194780,1747333833103,-2500.0,0.00012691,2]
[361194782,1747333833112,-789.699,0.00012785,2]
[361194784,1747333833122,-1000.0,0.00012785,2]
[361194786,1747333833131,-156.46449595,0.00012786,2]
[361194788,1747333833141,-741.11087061,0.00012786,2]
[361194790,1747333833150,-500.0,0.0001279,2]
[361194792,1747333833160,-200.0,0.0001279,2]
[361194794,1747333833170,-500.0,0.0001279,2]
[361194796,1747333833180,-500.0,0.0001279,2]
[361194798,1747333833189,-500.0,0.0001279,2]
[361194800,1747333833199,-500.0,0.0001279,2]
[361194802,1747333833208,-500.0,0.0001279,2]
[361194804,1747333833218,-500.0,0.0001279,2]
[361194806,1747333833227,-619.8411402,0.0001279,2]
[361194808,1747333833237,-500.0,0.0001279,2]
[361194810,1747333833249,-500.0,0.0001279,2]
[361194812,1747333833259,-500.0,0.0001279,2]
[361194814,1747333833269,-500.0,0.0001279,2]
[361194816,1747333833278,-500.0,0.0001279,2]
[361194818,1747333833287,-500.0,0.0001279,2]
[361194820,1747333833298,-500.0,0.0001279,2]
[361194822,1747333833307,-500.0,0.0001279,2]
[361194824,1747333833317,-500.0,0.0001279,2]
[361194826,1747333833326,-500.0,0.0001279,2]
[361194828,1747333833335,-500.0,0.0001279,2]
[361194830,1747333833345,-500.0,0.0001279,2]
[361194832,1747333833354,-500.0,0.0001279,2]
[361194834,1747333833364,-500.0,0.0001279,2]
[361194836,1747333833373,-500.0,0.0001279,2]
[361194838,1747333833384,-500.0,0.0001279,2]
[361194840,1747333833393,-500.0,0.0001279,2]
[361194842,1747333833402,-500.0,0.0001279,2]
[361194844,1747333833411,-500.0,0.0001279,2]
[361194846,1747333833420,-500.0,0.0001279,2]
[361194848,1747333833429,-500.0,0.0001279,2]
[361194850,1747333833437,-500.0,0.0001279,2]
[361194852,1747333833446,-500.0,0.0001279,2]
[361194854,1747333833455,-500.0,0.0001279,2]
[361194856,1747333833464,-500.0,0.0001279,2]
[361194858,1747333833473,-500.0,0.0001279,2]
[361194860,1747333833483,-500.0,0.0001279,2]
[361194862,1747333833492,-500.0,0.0001279,2]
[361194864,1747333833505,-500.0,0.0001279,2]
[361194865,1747333833515,-500.0,0.0001279,2]
[361194867,1747333833525,-500.0,0.0001279,2]
[361194869,1747333833534,-500.0,0.0001279,2]
[361194871,1747333833545,-500.0,0.0001279,2]
[361194874,1747333833555,-500.0,0.0001279,2]
[361194875,1747333833565,-500.0,0.0001279,2]
[361194877,1747333833575,-500.0,0.0001279,2]
[361194879,1747333833585,-500.0,0.0001279,2]
[361194881,1747333833595,-500.0,0.0001279,2]
[361194883,1747333833605,-500.0,0.0001279,2]
[361194885,1747333833614,-500.0,0.0001279,2]
[361194888,1747333833625,-500.0,0.0001279,2]
[361194889,1747333833635,-500.0,0.0001279,2]
[361194891,1747333833645,-500.0,0.0001279,2]
[361194893,1747333833654,-500.0,0.0001279,2]
[361194895,1747333833666,-500.0,0.0001279,2]
[361194897,1747333833676,-500.0,0.0001279,2]
[361194899,1747333833686,-405.59576941,0.0001279,2]
[361194901,1747333833696,-500.0,0.0001279,2]
[361194903,1747333833707,-500.0,0.0001279,2]
[361194906,1747333833716,-500.0,0.0001279,2]
[361194908,1747333833727,-500.0,0.0001279,2]
[361194910,1747333833737,-500.0,0.0001279,2]
[361194912,1747333833750,-500.0,0.0001279,2]
[361194914,1747333833761,-500.0,0.0001279,2]
[361194916,1747333833771,-500.0,0.0001279,2]
[361194918,1747333833780,-500.0,0.0001279,2]
[361194920,1747333833790,-500.0,0.0001279,2]
[361194922,1747333833800,-500.0,0.0001279,2]
[361194924,1747333833809,-500.0,0.0001279,2]
[361194926,1747333833819,-500.0,0.0001279,2]
[361194928,1747333833828,-500.0,0.0001279,2]
[361194930,1747333833838,-500.0,0.0001279,2]
[361194932,1747333833847,-500.0,0.0001279,2]
[361194934,1747333833859,-500.0,0.0001279,2]
[361194935,1747333833870,-500.0,0.0001279,2]
[361194938,1747333833880,-500.0,0.0001279,2]
[361194939,1747333833889,-500.0,0.0001279,2]
[361194942,1747333833898,-500.0,0.0001279,2]
[361194944,1747333833907,-500.0,0.0001279,2]
[361194946,1747333833917,-500.0,0.0001279,2]
[361194948,1747333833927,-500.0,0.0001279,2]
[361194950,1747333833937,-500.0,0.0001279,2]
[361194951,1747333833947,-500.0,0.0001279,2]
[361194953,1747333833956,-500.0,0.0001279,2]
[361194955,1747333833966,-500.0,0.0001279,2]
[361194957,1747333833977,-500.0,0.0001279,2]
[361194959,1747333833989,-500.0,0.0001279,2]
[361194961,1747333833999,-500.0,0.0001279,2]
[361194963,1747333834009,-500.0,0.0001279,2]
[361194965,1747333834019,-500.0,0.0001279,2]
[361194967,1747333834028,-500.0,0.0001279,2]
[361194969,1747333834037,-500.0,0.0001279,2]
[361194971,1747333834047,-550.0,0.0001279,2]
[361194973,1747333834058,-92708.4934,0.00012791,2]
[361194975,1747333834067,-239.78584638,0.00012791,2]
[361194977,1747333834076,-500.22257666,0.00012873,2]
[361194979,1747333834086,-350.0,0.00012873,2]
[361194981,1747333834096,-150.0,0.00012877,2]
[361194983,1747333834105,-150.0,0.00012877,2]
[361194985,1747333834115,-121713.15946612,0.00012886,2]
[361194986,1747333834128,-856.5879686,0.00012886,2]
[361194987,1747333834139,-742.41129901,0.00012886,2]
[361194988,1747333834150,-13945.30236963,0.00012886,2]
[361194989,1747333834159,-5000.0,0.00012891,2]
[361194990,1747333834169,-151.0,0.00012893,2]
[361194991,1747333834180,-151.0,0.00012893,2]
[361194992,1747333834189,-151.0,0.00012893,2]
[361194993,1747333834199,-33019.56594075,0.00012896,2]
[361194994,1747333834217,-18283.7842712,0.00012896,2]
[361194995,1747333834229,-29939.89628795,0.00012896,2]
[361194996,1747333834238,-5787.5069133,0.00012896,2]
[361194997,1747333834249,-2354.0187496,0.00012896,2]
[361195000,1747333834258,-9701.1893312,0.00012896,2]
[361195001,1747333834268,-151.0,0.00012896,2]
[361195003,1747333834277,-151.0,0.00012896,2]
[361195005,1747333834286,-151.0,0.00012896,2]
[361195007,1747333834296,-559.83229902,0.000129,2]
[361195009,1747333834306,-151.0,0.000129,2]
[361195011,1747333834316,-151.0,0.000129,2]
[361195013,1747333834325,-272.0047,0.000129,2]
[361195015,1747333834334,-391.83122003,0.000129,2]
[361195017,1747333834343,-151.0,0.000129,2]
[361195019,1747333834353,-151.0,0.000129,2]
[361195021,1747333834362,-151.0,0.000129,2]
[361195023,1747333834372,-151.0,0.000129,2]
[361195025,1747333834382,-151.0,0.000129,2]
[361195027,1747333834391,-151.0,0.000129,2]
[361195029,1747333834400,-151.0,0.000129,2]
[361195031,1747333834409,-153.840519,0.000129,2]
[361195033,1747333834419,-151.0,0.000129,2]
[361195035,1747333834428,-151.0,0.000129,2]
[361195037,1747333834437,-151.0,0.000129,2]
[361195039,1747333834447,-151.0,0.000129,2]
[361195041,1747333834456,-151.0,0.000129,2]
[361195043,1747333834465,-151.0,0.000129,2]
[361195045,1747333834474,-265.872362,0.000129,2]
[361195047,1747333834484,-151.0,0.000129,2]
[361195049,1747333834493,-151.0,0.000129,2]
[361195051,1747333834503,-265.872362,0.000129,2]
[361195053,1747333834514,-576.20411568,0.000129,2]
[361195055,1747333834525,-151.0,0.000129,2]
[361195057,1747333834534,-151.0,0.000129,2]
[361195059,1747333834543,-151.0,0.000129,2]
[361195061,1747333834552,-156.884111,0.000129,2]
[361195063,1747333834561,-151.0,0.000129,2]
[361195065,1747333834570,-155.448872,0.000129,2]
[361195067,1747333834580,-151.0,0.000129,2]
[361195069,1747333834590,-151.0,0.000129,2]
[361195071,1747333834599,-151.0,0.000129,2]
[361195073,1747333834609,-151.0,0.000129,2]
[361195075,1747333834618,-151.0,0.000129,2]
[361195077,1747333834627,-151.0,0.000129,2]
[361195079,1747333834636,-151.0,0.000129,2]
[361195081,1747333834645,-151.0,0.000129,2]
[361195083,1747333834655,-151.0,0.000129,2]
[361195085,1747333834664,-151.0,0.000129,2]
[361195087,1747333834674,-151.0,0.000129,2]
[361195089,1747333834683,-151.212428,0.000129,2]
[361195091,1747333834693,-151.0,0.000129,2]
[361195093,1747333834702,-150.0,0.00012904,2]
[361195095,1747333834711,-159.812448,0.00012916,2]
[361195097,1747333834721,-737.013531,0.00012916,2]
[361195099,1747333834730,-150.0,0.00012932,2]
[361195101,1747333834739,-151.0,0.00012953,2]
[361195103,1747333834748,-296.321459,0.00012953,2]
[361195105,1747333834757,-151.0,0.00012953,2]
[361195107,1747333834766,-151.0,0.00012953,2]
[361195109,1747333834776,-151.0,0.00012953,2]
[361195111,1747333834785,-151.0,0.00012953,2]
[361195113,1747333834794,-151.0,0.00012953,2]
[361195115,1747333834803,-151.0,0.00012953,2]
[361195117,1747333834813,-151.0,0.00012953,2]
[361195119,1747333834822,-151.0,0.00012953,2]
[361195121,1747333834831,-151.0,0.00012953,2]
[361195123,1747333834840,-151.0,0.00012953,2]
[361195125,1747333834849,-151.0,0.00012953,2]
[361195127,1747333834859,-151.0,0.00012953,2]
[361195129,1747333834867,-151.0,0.00012953,2]
[361195131,1747333834876,-151.0,0.00012953,2]
[361195133,1747333834885,-151.0,0.00012953,2]
[361195135,1747333834895,-151.0,0.00012953,2]
[361195137,1747333834904,-157.715481,0.00012953,2]
[361195139,1747333834913,-151.0,0.00012953,2]
[361195141,1747333834922,-151.0,0.00012953,2]
[361195143,1747333834932,-151.0,0.00012953,2]
[361195145,1747333834941,-151.0,0.00012953,2]
[361195147,1747333834950,-151.0,0.00012953,2]
[361195149,1747333834959,-151.0,0.00012953,2]
[361195151,1747333834969,-151.0,0.00012953,2]
[361195153,1747333834980,-4111.957151,0.00012953,2]
[361195155,1747333834991,-4111.957151,0.00012953,2]
[361195157,1747333835001,-151.0,0.00012953,2]
[361195159,1747333835009,-151.0,0.00012953,2]
[361195161,1747333835019,-151.0,0.00012953,2]
[361195163,1747333835027,-151.0,0.00012953,2]
[361195184,1747333835222,-151.0,0.00012953,2]
[361195186,1747333835231,-151.0,0.00012953,2]
[361195188,1747333835240,-151.0,0.00012953,2]
[361195190,1747333835249,-1173.0,0.00012959,2]
[361195192,1747333835259,-3842.0,0.00012959,2]
[361195194,1747333835268,-202.2867592,0.00012959,2]
[361195196,1747333835278,-166.34503052,0.00012973,2]
[361195198,1747333835288,-151.0,0.0001299,2]
[361195200,1747333835297,-155.045479,0.0001299,2]
[361195202,1747333835306,-168.470085,0.0001299,2]
[361195204,1747333835316,-151.0,0.0001299,2]
[361195206,1747333835324,-151.0,0.0001299,2]
[361195208,1747333835333,-151.0,0.0001299,2]
[361195210,1747333835342,-151.0,0.0001299,2]
[361195212,1747333835351,-649.55619286,0.0001299,2]
[361195214,1747333835359,-177.672607,0.0001299,2]
[361195216,1747333835368,-152.890294,0.0001299,2]
[361195218,1747333835377,-151.0,0.0001299,2]
[361195220,1747333835386,-151.0,0.0001299,2]
[361195222,1747333835395,-151.0,0.0001299,2]
[361195224,1747333835403,-151.0,0.0001299,2]
[361195226,1747333835412,-151.0,0.0001299,2]
[361195228,1747333835421,-151.0,0.0001299,2]
[361195230,1747333835430,-182.10517331,0.00012991,2]
[361195232,1747333835439,-157.302334,0.00012991,2]
[361195234,1747333835448,-151.0,0.00012991,2]
[361195236,1747333835457,-151.0,0.00012991,2]
[361195238,1747333835466,-151.0,0.00012991,2]
[361195240,1747333835476,-151.0,0.00012991,2]
[361195242,1747333835488,-151.0,0.00012991,2]
[361195244,1747333835499,-151.0,0.00012991,2]
[361195246,1747333835508,-151.0,0.00012991,2]
[361195248,1747333835518,-151.0,0.00012991,2]
[361195250,1747333835527,-151.0,0.00012991,2]
[361195252,1747333835537,-151.0,0.00012991,2]
[361195254,1747333835546,-151.0,0.00012991,2]
[361195256,1747333835555,-151.0,0.00012991,2]
[361195258,1747333835565,-151.0,0.00012991,2]
[361195260,1747333835574,-151.0,0.00012991,2]
[361195262,1747333835583,-210.477922,0.00012991,2]
[361195264,1747333835593,-151.0,0.00012991,2]
[361195266,1747333835602,-151.0,0.00012991,2]
[361195268,1747333835611,-151.0,0.00012991,2]
[361195270,1747333835620,-151.0,0.00012991,2]
[361195272,1747333835629,-151.0,0.00012991,2]
[361195274,1747333835639,-4111.957151,0.00012991,2]
[361195276,1747333835648,-4111.957151,0.00012991,2]
[361195278,1747333835657,-4111.957151,0.00012991,2]
[361195280,1747333835667,-4111.957151,0.00012991,2]
[361195282,1747333835676,-151.0,0.00012991,2]
[361195284,1747333835685,-151.0,0.00012991,2]
[361195286,1747333835695,-151.0,0.00012991,2]
[361195288,1747333835704,-151.0,0.00012991,2]
[361195290,1747333835714,-151.0,0.00012991,2]
[361195292,1747333835723,-151.0,0.00012991,2]
[361195294,1747333835732,-151.0,0.00012991,2]
[361195296,1747333835742,-151.0,0.00012991,2]
[361195298,1747333835752,-151.0,0.00012991,2]
[361195300,1747333835762,-151.373346,0.00012991,2]
[361195302,1747333835771,-151.0,0.00012991,2]
[361195304,1747333835780,-151.0,0.00012991,2]
[361195306,1747333835790,-284.49536,0.00012991,2]
[361195308,1747333835800,-151.0,0.00012991,2]
[361195310,1747333835809,-151.0,0.00012991,2]
[361195312,1747333835818,-151.0,0.00012991,2]
[361195314,1747333835827,-151.0,0.00012991,2]
[361195316,1747333835836,-151.0,0.00012991,2]
[361195318,1747333835845,-151.0,0.00012991,2]
[361195320,1747333835855,-151.0,0.00012991,2]
[361195322,1747333835864,-151.0,0.00012991,2]
[361195324,1747333835873,-151.0,0.00012991,2]
[361195326,1747333835882,-265.872362,0.00012991,2]
[361195328,1747333835891,-265.872362,0.00012991,2]
[361195330,1747333835900,-151.0,0.00012991,2]
[361195332,1747333835909,-151.0,0.00012991,2]
[361195334,1747333835918,-151.0,0.00012991,2]
[361195336,1747333835927,-265.872362,0.00012991,2]
[361195338,1747333835937,-265.872362,0.00012991,2]
[361195340,1747333835945,-151.0,0.00012991,2]
[361195342,1747333835954,-153.385844,0.00012991,2]
[361195344,1747333835963,-166.50777,0.00012991,2]
[361195346,1747333835972,-91994.9478999,0.00012991,2]
[361195348,1747333835985,-151.0,0.00012991,2]
[361195350,1747333835994,-261.851639,0.00012991,2]
[361195352,1747333836004,-6553.4234523,0.00012991,2]
[361195354,1747333836014,-151.0,0.00012991,2]
[361195356,1747333836023,-151.0,0.00012991,2]
[361195358,1747333836032,-151.0,0.00012991,2]
[361195360,1747333836042,-153.58199,0.00012991,2]
[361195362,1747333836051,-151.0,0.00012991,2]
[361195364,1747333836061,-154.554191,0.00012991,2]
[361195366,1747333836071,-151.0,0.00012991,2]
[361195368,1747333836080,-151.0,0.00012991,2]
[361195371,1747333836089,-151.0,0.00012991,2]
[361195372,1747333836098,-2684.1663819,0.00012991,2]
[361195374,1747333836107,-151.0,0.00012991,2]
[361195376,1747333836116,-151.0,0.00012991,2]
[361195378,1747333836125,-9183.9270954,0.00012991,2]
[361195380,1747333836134,-151.0,0.00012991,2]
[361195382,1747333836142,-151.0,0.00012991,2]
[361195384,1747333836151,-151.0,0.00012991,2]
[361195386,1747333836160,-737.013531,0.00012995,2]
[361195388,1747333836170,-737.013531,0.00012997,2]
[361195390,1747333836179,-300.0,0.00012999,2]
[361195392,1747333836187,-300.0,0.00012999,2]
[361195394,1747333836197,-159.812448,0.00012999,2]
[361195396,1747333836206,-737.013531,0.00012999,2]
[361195398,1747333836215,-300.0,0.00012999,2]
[361195400,1747333836223,-150.0,0.00012999,2]
[361195402,1747333836232,-150.0,0.00012999,2]
[361195404,1747333836241,-150.0,0.00012999,2]
[361195406,1747333836249,-150.0,0.00012999,2]
[361195408,1747333836259,-150.0,0.00012999,2]
[361195410,1747333836267,-171610.4612311,0.00013,2]
[361195413,1747333836281,-450.0,0.00013,2]
[361195415,1747333836291,-1693.6999999,0.00013,2]
[361195417,1747333836302,-6346.50000008,0.00013,2]
[361195419,1747333836312,-598.30258062,0.00013,2]
[361195421,1747333836323,-586.98352101,0.00013,2]
[361195424,1747333836334,-5230.24177752,0.00013,2]
[361195426,1747333836345,-2445.75038882,0.00013,2]
[361195428,1747333836356,-1854.9,0.00013,2]
[361195431,1747333836375,-1362.16389,0.00013,2]
[361195433,1747333836386,-5023.00535554,0.00013,2]
[361195435,1747333836396,-268641.73641388,0.00013,2]
[361195629,1747333838274,-463.28746673,0.00011987,2]
[361195636,1747333838325,-658.52263327,0.00011987,2]
[361195638,1747333838335,-204.897675,0.00012896,2]
[361195640,1747333838344,-359.13969191,0.00012991,2]
[361195642,1747333838355,-624.88728,0.00012991,2]
[361195644,1747333838367,-277.595,0.00012991,2]
[361195646,1747333838378,-584.78514729,0.00012991,2]
[361195653,1747333838434,-1563.46598488,0.00012991,2]
[361195655,1747333838445,-1771.25319966,0.00012991,2]
[361195658,1747333838457,-344.62848477,0.00012991,2]
[361195673,1747333838596,-10682.76736768,0.00012991,2]
[361195869,1747333840465,-151.0,0.00012896,2]
[361195871,1747333840476,-157.08108481,0.00012991,2]
[361195876,1747333840522,-166.34680962,0.00012891,2]
[361195879,1747333840531,-9428.47586095,0.00012991,2]
[361195890,1747333840629,-500.0,0.00012991,2]
[361195892,1747333840640,-547.0,0.00012991,2]
[361195895,1747333840651,-2910.02301602,0.00012991,2]
[361195899,1747333840687,-5669.31040505,0.00012991,2]
[361195902,1747333840698,-4452.49717128,0.00012991,2]
[361195908,1747333840743,-1729.85740307,0.00012991,2]
[361195910,1747333840756,-1352.25,0.00012991,2]
[361195921,1747333840853,-87833.30036895,0.00012991,2]
[361195923,1747333840863,-151.0,0.00012991,2]
[361195925,1747333840871,-151.0,0.00012991,2]
[361195927,1747333840881,-151.0,0.00012991,2]
[361195929,1747333840890,-151.0,0.00012991,2]
[361195931,1747333840900,-146956.53524774,0.00013,2]
[361196196,1747333843473,-15280.11589186,0.00013,2]
[361196226,1747333843742,-39660.03882731,0.00013,2]
[361196233,1747333843796,-577.13,0.00013,2]
[361196240,1747333843852,-302.0,0.00013,2]
[361196490,1747333846423,-10360.0,0.00013,2]
[361197813,1747333985459,273.91,0.00021945,30]
[361197814,1747334259786,-168.66,9.961e-05,2]
[361197815,1747334699749,150.0,0.00012133,7]
[361197816,1747334708314,233.992386,7.945e-05,2]
[361197817,1747334718695,1100.0,0.00025,30]
[361197875,1747335008554,239.67,0.00021945,30]
[361197886,1747335031530,-339.17912446,0.00010058,2]
[361197887,1747335031545,-1080.08087554,0.00010058,2]
[361197888,1747335031554,-250.0,0.0001097,2]
[361197889,1747335031563,-250.0,0.00011064,2]
[361197890,1747335031573,-250.0,0.00011622,2]
[361197891,1747335031583,-1200.0,0.00011646,2]
[361197892,1747335031592,-300.0,0.00011646,2]
[361197893,1747335031601,-136.91169876,0.00011647,2]
[361197894,1747335031622,-2729.8716691,0.00011647,2]